fUSD/lending_fUSD_20250421
["ID","MTS","AMOUNT","RATE_DAILY","PERIOD"]
[358495111,1745211036527,-1932.37,0.00065204,7]
[358495112,1745211036535,-558.13,0.00065204,120]
[358495113,1745211036544,-545.84,0.00065204,120]
[358495114,1745211036554,-787.38,0.00065204,120]
[358495115,1745211036562,-599.22,0.00065204,120]
[358495116,1745211036572,-500.0,0.00065204,120]
[358495117,1745211036582,-500.0,0.00065204,120]
[358495118,1745211036591,-710.7,0.00065204,120]
[358495119,1745211036601,-500.0,0.00065204,120]
[358495120,1745211036610,-507.1,0.00065204,120]
[358495121,1745211036620,-323.12592514,0.00065204,120]
[358495124,1745211037731,-8448.59738024,0.000499,2]
[358495125,1745211037840,-16939.02231976,0.000499,2]
[358495126,1745211037849,-213.84,0.00061586,120]
[358495127,1745211037859,-946.78563424,0.000641,30]
[358495128,1745211037868,-500.0,0.00064107,2]
[358495129,1745211037877,-500.0,0.00064108,120]
[358495130,1745211037886,-500.0,0.00064108,120]
[358495131,1745211037895,-155.8,0.00064656,120]
[358495132,1745211037904,-276.75407486,0.00065204,120]
[358495133,1745211037913,-813.1,0.00065204,120]
[358495134,1745211037922,-580.66,0.00065204,120]
[358495135,1745211037931,-547.42,0.00065204,120]
[358495136,1745211037940,-2471.84,0.00065204,2]
[358495137,1745211037950,-830.54,0.00065204,120]
[358495138,1745211037959,-1140.79,0.00065204,120]
[358495139,1745211037968,-1037.4,0.00065204,120]
[358495140,1745211037977,-500.0,0.00065205,120]
[358495141,1745211037986,-553.37,0.00065205,120]
[358495142,1745211037995,-500.0,0.00065205,120]
[358495143,1745211038003,-602.9,0.00065205,120]
[358495144,1745211038012,-500.0,0.00065205,120]
[358495145,1745211038021,-556.05,0.00065205,120]
[358495146,1745211038030,-500.0,0.00065205,14]
[358495147,1745211038039,-500.0,0.00065205,120]
[358495148,1745211038048,-500.0,0.00065205,120]
[358495149,1745211038058,-266.96465056,0.00065205,120]
[358495150,1745211038067,-500.0,0.00065205,120]
[358495151,1745211038076,-500.0,0.00065205,120]
[358495152,1745211038084,-500.0,0.00065205,120]
[358495153,1745211038094,-1618.94,0.00065205,120]
[358495154,1745211038103,-500.0,0.00065205,120]
[358495155,1745211038112,-500.0,0.00065205,120]
[358495156,1745211038121,-1267.67,0.00065205,120]
[358495157,1745211038130,-1571.46,0.00065205,120]
[358495158,1745211038139,-780.05,0.00065205,120]
[358495159,1745211038148,-535.37622939,0.00065205,8]
[358495160,1745211038158,-1385.91,0.00065205,120]
[358495161,1745211038167,-512.4,0.00065205,120]
[358495162,1745211038176,-500.0,0.00065205,120]
[358495163,1745211038186,-500.0,0.00065205,2]
[358495164,1745211038195,-611.97,0.00065205,120]
[358495165,1745211038204,-529.77,0.00065205,120]
[358495166,1745211038212,-865.19,0.00065205,120]
[358495167,1745211038221,-1231.0,0.00065206,120]
[358495168,1745211038231,-489.0,0.00065206,120]
[358495169,1745211038240,-356.49893494,0.00065206,120]
[358495170,1745211038249,-264.84331181,0.00065351,120]
[358495171,1745211038258,-167.0,0.000654,120]
[358495172,1745211038267,-22665.0206005,0.0006546,4]
[358495173,1745211038277,-470.56449005,0.0006547,15]
[358495174,1745211038286,-2346.28036655,0.00065638,30]
[358495175,1745211038295,-22665.0206005,0.00065642,4]
[358495176,1745211038304,-1634.11480419,0.00065652,15]
[358495177,1745211038313,-88888.0,0.00065652,120]
[358495178,1745211038323,-9880.45117387,0.00065732,5]
[358495179,1745211038332,-22665.0206005,0.00065742,4]
[358495180,1745211038341,-9880.45117387,0.00065742,5]
[358495181,1745211038350,-9880.45117387,0.00065743,5]
[358495182,1745211038360,-500.0,0.00065752,120]
[358495183,1745211038369,-815.86,0.00065752,120]
[358495184,1745211038379,-1530.03,0.00065752,120]
[358495185,1745211038392,-681.58,0.00065752,120]
[358495186,1745211038401,-642.36,0.00065752,120]
[358495187,1745211038411,-547.64,0.00065752,120]
[358495188,1745211038420,-500.0,0.00065752,120]
[358495189,1745211038431,-500.0,0.00065752,120]
[358495190,1745211038440,-500.0,0.00065752,12]
[358495191,1745211038449,-1932.37,0.00065752,7]
[358495192,1745211038458,-558.13,0.00065752,120]
[358495193,1745211038469,-545.84,0.00065752,120]
[358495194,1745211038479,-787.38,0.00065752,120]
[358495195,1745211038488,-500.0,0.00065752,120]
[358495196,1745211038498,-500.0,0.00065752,120]
[358495197,1745211038507,-710.7,0.00065752,120]
[358495198,1745211038516,-500.0,0.00065752,120]
[358495199,1745211038526,-507.1,0.00065752,120]
[358495200,1745211038537,-599.88,0.00065752,120]
[358495201,1745211038547,-813.1,0.00065752,120]
[358495202,1745211038557,-580.66,0.00065752,120]
[358495203,1745211038567,-547.42,0.00065752,120]
[358495204,1745211038576,-2471.84,0.00065752,2]
[358495205,1745211038585,-830.54,0.00065752,120]
[358495206,1745211038595,-1140.79,0.00065752,120]
[358495207,1745211038604,-1037.4,0.00065752,120]
[358495208,1745211038613,-500.0,0.00065753,120]
[358495209,1745211038623,-553.37,0.00065753,120]
[358495210,1745211038633,-500.0,0.00065753,120]
[358495211,1745211038643,-602.9,0.00065753,120]
[358495212,1745211038652,-500.0,0.00065753,120]
[358495213,1745211038662,-556.05,0.00065753,120]
[358495214,1745211038671,-500.0,0.00065753,14]
[358495215,1745211038681,-500.0,0.00065753,120]
[358495216,1745211038690,-500.0,0.00065753,120]
[358495217,1745211038699,-285.88318397,0.00065753,120]
[358495218,1745211038709,-500.0,0.00065753,120]
[358495219,1745211038718,-1618.94,0.00065753,120]
[358495220,1745211038727,-500.0,0.00065753,120]
[358495221,1745211038736,-500.0,0.00065753,120]
[358495222,1745211038746,-1267.67,0.00065753,120]
[358495223,1745211038756,-1571.46,0.00065753,120]
[358495224,1745211038765,-780.05,0.00065753,120]
[358495225,1745211038775,-1385.91,0.00065753,120]
[358495226,1745211038785,-512.4,0.00065753,120]
[358495227,1745211038795,-500.0,0.00065753,120]
[358495228,1745211038804,-500.0,0.00065753,2]
[358495229,1745211038813,-611.97,0.00065753,120]
[358495230,1745211038823,-529.77,0.00065753,120]
[358495231,1745211038833,-865.19,0.00065753,120]
[358495232,1745211038842,-1231.0,0.00065754,120]
[358495233,1745211038851,-489.0,0.00065754,120]
[358495234,1745211038860,-3000.0,0.000658,24]
[358495235,1745211038870,-18579.39510573,0.00065845,5]
[358495280,1745211039905,-8.24485339,0.00063013,7]
[358495709,1745211042523,-600.0,0.00063013,7]
[358495730,1745211042738,-571.02940977,0.00063013,7]
[358495819,1745211045551,-500.33573684,0.00063013,7]
[358495820,1745211045561,-500.0,0.0006356,120]
[358495821,1745211045571,-1679.61,0.00063561,7]
[358495822,1745211045580,-541.34943903,0.00063561,120]
[358495823,1745211045590,-500.0,0.00063561,120]
[358495824,1745211045599,-500.0,0.00064108,120]
[358495825,1745211045609,-1679.61,0.00064109,7]
[358495826,1745211045620,-500.0,0.00064109,120]
[358495827,1745211045629,-1679.61,0.00064657,7]
[358495828,1745211045638,-500.0,0.00064657,120]
[358495829,1745211045780,-14569.31,0.00065155,2]
[358495830,1745211045798,-1679.61,0.00065205,7]
[358495831,1745211045808,-500.0,0.00065205,120]
[358495832,1745211045818,-1679.61,0.00065753,7]
[358495833,1745211045828,-500.0,0.00065753,120]
[358495834,1745211045838,-1181.50724197,0.00065845,5]
[358495835,1745211045848,-9880.45117387,0.00065854,5]
[358495836,1745211045858,-22665.0206005,0.00065855,4]
[358495837,1745211045868,-69163.1582171,0.00065855,5]
[358495838,1745211045878,-9880.45117387,0.0006586,5]
[358495839,1745211045888,-22665.0206005,0.00065864,4]
[358495840,1745211045898,-86740.11834759,0.00065865,4]
[358495841,1745211045914,-268.987887,0.00065865,4]
[358495842,1745211045926,-318.8803487,0.00065865,4]
[358495843,1745211045937,-297.32939999,0.00065865,4]
[358496231,1745211425747,450.0,0.00017,2]
[358496233,1745212026251,-151.0,0.00035555,2]
[358496234,1745212026271,-39.29778183,0.00035555,2]
[358496242,1745212231826,-151.0,0.00035374,2]
[358496243,1745212231835,-151.0,0.00035374,2]
[358496244,1745212231847,-87.43752843,0.00036561,2]
[358496245,1745212231939,-157.22579257,0.00036561,2]
[358496246,1745212231948,-303.33273231,0.0004,2]
[358496247,1745212231957,-500.0,0.00040269,2]
[358496248,1745212231966,-500.0,0.00040269,2]
[358496249,1745212231975,-500.0,0.00040269,2]
[358496250,1745212231984,-2677.03364528,0.00040269,120]
[358496502,1745212237811,-363.00598874,0.00040269,120]
[358496503,1745212237820,-244.663321,0.00045246,2]
[358496504,1745212237980,-215.46706819,0.000459,19]
[358496505,1745212237990,-550.0,0.00048287,5]
[358496506,1745212238001,-244.663321,0.00048288,60]
[358496507,1745212238011,-1440.5673643,0.00048298,120]
[358496508,1745212238020,-154.83,0.000484,45]
[358496509,1745212238030,-154.83,0.000484,45]
[358496510,1745212238040,-154.83,0.000484,45]
[358496511,1745212238049,-154.83,0.000484,45]
[358496512,1745212238058,-154.83,0.000484,45]
[358496513,1745212238067,-500.0,0.0004874,30]
[358496514,1745212238077,-12028.91612667,0.00049809,2]
[358496515,1745212238089,-1211.17029523,0.00049809,2]
[358496516,1745212238099,-697.218,0.00049819,88]
[358496517,1745212238108,-171.0,0.00049819,4]
[358496518,1745212238118,-11997.81241877,0.0004982,2]
[358496519,1745212238131,-1002.0,0.0004982,2]
[358496520,1745212238154,-80919.99624762,0.0004982,2]
[358496521,1745212238164,-213.83,0.00050037,120]
[358496522,1745212238173,-500.0,0.00050138,60]
[358496523,1745212238183,-500.0,0.00050208,60]
[358496524,1745212238193,-250.0,0.00050229,120]
[358496525,1745212238202,-500.0,0.00050887,60]
[358496526,1745212238212,-500.0,0.00050966,60]
[358496527,1745212238222,-2736.4,0.00050984,2]
[358496528,1745212238232,-9921.44,0.0005105,2]
[358496529,1745212238241,-152.86,0.00051123,120]
[358496530,1745212238250,-14569.31,0.00051158,2]
[358496531,1745212238259,-883.58,0.00051166,2]
[358496532,1745212238268,-510.64,0.00051218,2]
[358496533,1745212238277,-23900.0,0.00051328,2]
[358496534,1745212238286,-720.73299357,0.0005161,15]
[358496535,1745212238296,-9329.8,0.00051689,2]
[358496536,1745212238306,-500.0,0.00051715,60]
[358496537,1745212238315,-500.0,0.0005223,60]
[358496538,1745212238325,-500.0,0.0005233,60]
[358496539,1745212238335,-157.27,0.00052393,2]
[358496540,1745212238345,-150.0,0.00052526,7]
[358496541,1745212238354,-500.0,0.00052614,60]
[358496542,1745212238364,-1000.0,0.00052635,120]
[358496543,1745212238373,-166.67,0.0005266,2]
[358496544,1745212238382,-1533.7,0.00052748,2]
[358496545,1745212238392,-500.0,0.00052976,60]
[358496546,1745212238401,-500.0,0.00053304,60]
[358496547,1745212238411,-510.64,0.00053482,2]
[358496548,1745212238419,-500.0,0.00053521,60]
[358496549,1745212238429,-500.0,0.00053724,60]
[358496550,1745212238439,-161.86,0.00053896,120]
[358496551,1745212238448,-244.663321,0.0005393,2]
[358496552,1745212238458,-720.73299357,0.00054087,15]
[358496553,1745212238467,-244.663321,0.00054501,60]
[358496554,1745212238477,-2457.14363186,0.0005469,15]
[358496555,1745212238487,-792.40878878,0.00054699,26]
[358496556,1745212238496,-154.83,0.000547,54]
[358496557,1745212238506,-154.83,0.000547,54]
[358496558,1745212238515,-154.83,0.000547,54]
[358496559,1745212238525,-154.83,0.000547,54]
[358496560,1745212238534,-154.83,0.000547,54]
[358496561,1745212238544,-154.83,0.000547,54]
[358496562,1745212238554,-154.83,0.000547,54]
[358496563,1745212238563,-154.83,0.000547,54]
[358496564,1745212238573,-154.83,0.000547,54]
[358496565,1745212238582,-154.83,0.000547,54]
[358496566,1745212238591,-441.70864739,0.00054773,10]
[358496567,1745212238600,-181491.459313,0.0005479,4]
[358496568,1745212238609,-26255.5954685,0.0005479,4]
[358496569,1745212238619,-500.0,0.00054799,120]
[358496570,1745212238628,-370.99080741,0.00054799,120]
[358496571,1745212238638,-307.7618862,0.00054799,120]
[358496572,1745212238647,-500.0,0.00054799,120]
[358496573,1745212238656,-500.0,0.00054799,120]
[358496574,1745212238665,-585.05192772,0.00054799,120]
[358496575,1745212238674,-1154.68789898,0.00054799,120]
[358496576,1745212238684,-163.99,0.00054799,120]
[358496577,1745212238693,-37022.93008573,0.000548,120]
[358496578,1745212238705,-395287.91105403,0.000548,120]
[358496579,1745212238714,-500.0,0.00054822,60]
[358496580,1745212238723,-200.0,0.00054879,2]
[358496581,1745212238733,-300.0,0.00054879,2]
[358496582,1745212238742,-8751.86515618,0.0005489,4]
[358496583,1745212238751,-4200.0,0.000549,20]
[358496584,1745212238761,-500.0,0.00055379,120]
[358496585,1745212238772,-204.9,0.00055436,2]
[358496586,1745212238782,-166.67,0.00055557,2]
[358496587,1745212238792,-510.64,0.00055746,2]
[358496588,1745212238801,-500.0,0.0005581,120]
[358496589,1745212238811,-627.92629218,0.00056,120]
[358496590,1745212238820,-500.0,0.00056514,120]
[358496591,1745212238829,-720.73299357,0.00056563,15]
[358496592,1745212238838,-198.84,0.00056572,2]
[358496593,1745212238849,-2457.14363182,0.00056824,15]
[358496594,1745212238858,-500.0,0.00056902,120]
[358496595,1745212238868,-8751.86515618,0.00057045,4]
[358496596,1745212238878,-500.0,0.00057091,120]
[358496597,1745212238888,-500.0,0.00057398,120]
[358496598,1745212238898,-500.0,0.00057731,120]
[358496599,1745212238907,-500.0,0.00058,120]
[358496600,1745212238917,-510.64,0.0005801,2]
[358496601,1745212238926,-500.0,0.00058341,120]
[358496602,1745212238935,-1000.23375317,0.00058362,2]
[358496603,1745212238945,-166.67,0.00058454,2]
[358496604,1745212238954,-500.0,0.00058834,120]
[358496605,1745212238963,-2457.14363182,0.00058959,15]
[358496606,1745212238973,-720.73299357,0.0005904,15]
[358496607,1745212238982,-500.0,0.00059063,120]
[358496608,1745212238991,-1000.0,0.00059215,120]
[358496609,1745212239001,-22686.4324141,0.00059341,4]
[358496610,1745212239011,-8751.86515618,0.00059341,4]
[358496611,1745212239020,-500.0,0.00059422,120]
[358496612,1745212239030,-500.0,0.00059628,120]
[358496613,1745212239039,-948.0,0.00059719,2]
[358496614,1745212239048,-8751.86515618,0.0005999,5]
[358496615,1745212239057,-18400.0,0.0006,120]
[358496616,1745212239067,-5600.0,0.0006,3]
[358496617,1745212239077,-150.0,0.000601,2]
[358496618,1745212239087,-1000.0,0.00060159,20]
[358496619,1745212239096,-500.0,0.00060213,120]
[358496620,1745212239106,-510.64,0.00060274,2]
[358496621,1745212239115,-8751.86515618,0.00060286,5]
[358496622,1745212239124,-1000.0,0.00060296,20]
[358496623,1745212239134,-500.0,0.00060327,120]
[358496624,1745212239144,-1000.0,0.00060433,20]
[358496625,1745212239153,-529.22926207,0.00060555,120]
[358496626,1745212239163,-215.46706819,0.00060567,29]
[358496627,1745212239172,-1000.0,0.0006057,20]
[358496628,1745212239181,-634.0,0.0006057,20]
[358496629,1745212239190,-500.0,0.00060597,120]
[358496630,1745212239202,-244.663321,0.00060714,60]
[358496631,1745212239212,-1321.57329518,0.00060828,2]
[358496632,1745212239221,-119153.87265987,0.0006098,2]
[358496633,1745212239230,-22686.4324141,0.0006098,4]
[358496634,1745212239239,-503.26592607,0.0006099,15]
[358496635,1745212239248,-500.0,0.00060997,120]
[358496636,1745212239258,-400.0,0.00061,120]
[358496637,1745212239267,-154.83,0.00061,63]
[358496638,1745212239280,-154.83,0.00061,63]
[358496639,1745212239291,-154.83,0.00061,63]
[358496640,1745212239304,-154.83,0.00061,63]
[358496641,1745212239316,-154.83,0.00061,63]
[358496642,1745212239327,-154.83,0.00061,63]
[358496643,1745212239338,-154.83,0.00061,63]
[358496644,1745212239349,-154.83,0.00061,63]
[358496645,1745212239361,-154.83,0.00061,63]
[358496646,1745212239374,-154.83,0.00061,63]
[358496647,1745212239386,-2457.14363182,0.00061093,15]
[358496648,1745212239398,-166.67,0.00061351,2]
[358496649,1745212239410,-720.73299357,0.00061517,15]
[358496651,1745212239422,-500.0,0.00061649,120]
[358496653,1745212239434,-8751.86515618,0.0006189,5]
[358496654,1745212239446,-8500.0,0.000619,22]
[358496655,1745212239457,-500.0,0.00061973,4]
[358496656,1745212239468,-68059.2972423,0.0006199,4]
[358496657,1745212239480,-58861.83447327,0.0006199,5]
[358496662,1745212240027,-2401.22162003,0.0006199,5]
[358496663,1745212240041,-1845.73737386,0.0006199,4]
[358496664,1745212240084,-1277.71152125,0.0006199,4]
[358496665,1745212240144,-1064.0,0.0006199,4]
[358496666,1745212240158,-806.50855043,0.0006199,4]
[358496667,1745212240173,-635.49482432,0.0006199,4]
[358496668,1745212240368,-2214.96209942,0.0006199,4]
[358496676,1745212243362,-560.19136354,0.0006199,4]
[358496677,1745212243376,-1378.17202466,0.0006199,4]
[358496678,1745212243389,-58542.44185606,0.0006199,4]
[358496682,1745212245617,-20247.72737071,0.0006199,4]
[358496687,1745212245741,-2172.78267215,0.0006199,4]
[358496688,1745212245751,-105022.381874,0.0006199,5]
[358496689,1745212245761,-151.0,0.0006199,120]
[358496690,1745212245773,-500.0,0.00061999,60]
[358496691,1745212245783,-141388.60798512,0.00062,120]
[358496708,1745212736619,-186.11965817,0.0003,2]
[358496709,1745213108655,139769.30084614,0.0002,2]
[358496710,1745213108680,138622.71094881,0.0002,2]
[358496711,1745213110804,361.53867822,0.000154,2]
[358496712,1745213111218,-268.89525197,0.000264,2]
[358496713,1745213182609,2351.67689499,0.000209,30]
[358496714,1745213222268,400.28524792,0.00015,14]
[358496715,1745213228151,450.0,0.00017,2]
[358496716,1745213228607,-199.145803,0.000264,2]
[358496717,1745213282079,-212.19885,0.000264,2]
[358496718,1745213282822,616.41470003,0.0002,4]
[358496719,1745213316108,1500.0,0.00024,2]
[358496720,1745213385422,-212.19885,0.000264,2]
[358496721,1745213388541,-170.4,0.000264,2]
[358496733,1745213432059,-1066.04934419,0.000264,2]
[358496734,1745213432069,-424.3977,0.00028895,2]
[358496735,1745213432079,-250.0,0.0002904,2]
[358496736,1745213432088,-210.90569853,0.000299,2]
[358496737,1745213432097,-300.0,0.00029999,2]
[358496738,1745213432107,-300.0,0.00029999,2]
[358496739,1745213432116,-27414.65803376,0.0003,2]
[358496755,1745213438017,-15062.5085619,0.0003,2]
[358496756,1745213438027,-164.01430277,0.0003,2]
[358496757,1745213438036,-378.33110625,0.0003,2]
[358496758,1745213438045,-151.0,0.00034768,2]
[358496759,1745213438054,-151.0,0.00034768,2]
[358496760,1745213438063,-215.46706819,0.000349,12]
[358496761,1745213438072,-163.63364825,0.00035,30]
[358496762,1745213438082,-318.18,0.00035,2]
[358496763,1745213438091,-927.69,0.00035,2]
[358496764,1745213438100,-317.93,0.00035,2]
[358496765,1745213438109,-797.18,0.00035,2]
[358496766,1745213438118,-692.78,0.00035,2]
[358496767,1745213438127,-350.68,0.00035,2]
[358496768,1745213438136,-157.15,0.00035,2]
[358496769,1745213438145,-797.18,0.00035,2]
[358496770,1745213438155,-350.68,0.00035,2]
[358496771,1745213438164,-797.18,0.00035,2]
[358496772,1745213438174,-151.0,0.00035079,2]
[358496773,1745213438183,-151.0,0.00035079,2]
[358496774,1745213438192,-557.775,0.00039608,55]
[358496775,1745213438201,-175.575359,0.000411,2]
[358496776,1745213438210,-522.0,0.00046932,2]
[358496777,1745213438219,-204.9,0.00047238,2]
[358496778,1745213438229,-175.575359,0.00047425,2]
[358496779,1745213438238,-300.0,0.00047445,2]
[358496780,1745213438247,-348.76,0.00047446,2]
[358496781,1745213438257,-369.91,0.0004767,120]
[358496782,1745213438266,-5500.0,0.000479,17]
[358496783,1745213438275,-500.0,0.000479,17]
[358496784,1745213438285,-153.229548,0.000481,2]
[358496785,1745213438294,-739.58153626,0.000482,20]
[358496786,1745213438303,-175.575359,0.00048288,60]
[358496787,1745213438312,-153.229548,0.00048288,60]
[358496788,1745213438321,-156.02,0.0004829,2]
[358496789,1745213438330,-500.0,0.00048299,120]
[358496790,1745213438339,-151.9618093,0.00048299,120]
[358496791,1745213438351,-500.0,0.00048299,120]
[358496792,1745213438360,-500.0,0.00048299,120]
[358496793,1745213438369,-478.64561102,0.00048299,120]
[358496794,1745213438378,-500.0,0.00048299,120]
[358496795,1745213438387,-500.0,0.00048299,120]
[358496796,1745213438398,-3073.00306562,0.00048301,16]
[358496797,1745213438407,-214.03650081,0.00048301,30]
[358496798,1745213438417,-413384.27343562,0.00048301,30]
[358496799,1745213438430,-303933.72656438,0.00048301,30]
[358496800,1745213438440,-604.00786712,0.00048301,7]
[358496817,1745213438601,-1282.41808615,0.00048301,4]
[358496819,1745213438611,-155.9822881,0.00048301,120]
[358496821,1745213438620,-464.43762623,0.00048301,7]
[358496823,1745213438630,-198.29213581,0.00048301,30]
[358496825,1745213438639,-19185.91173119,0.00048301,2]
[358496827,1745213438648,-544.74813969,0.00048301,7]
[358496829,1745213438657,-340.98392406,0.00048301,7]
[358496831,1745213438667,-919.34116435,0.00048301,3]
[358496833,1745213438676,-2052.36118263,0.00048301,3]
[358496835,1745213438685,-2206.38923674,0.00048301,120]
[358496837,1745213438694,-5644.04500891,0.00048301,60]
[358496839,1745213438703,-6769.30542746,0.00048301,4]
[358496841,1745213438712,-5195.16721556,0.00048301,4]
[358496843,1745213438721,-155.95826121,0.00048301,30]
[358496845,1745213438730,-154.87,0.000484,45]
[358496847,1745213438739,-154.87,0.000484,45]
[358496849,1745213438748,-154.87,0.000484,45]
[358496851,1745213438759,-211.0,0.000503,30]
[358496853,1745213438768,-500.0,0.0005075,60]
[358496855,1745213438778,-500.0,0.0005162,60]
[358496857,1745213438787,-500.0,0.00051887,60]
[358496859,1745213438795,-151.0,0.00052,120]
[358496861,1745213438805,-500.0,0.00052009,60]
[358496863,1745213438814,-211.0,0.0005213,30]
[358496865,1745213438823,-500.0,0.00053165,60]
[358496867,1745213438833,-175.575359,0.0005375,2]
[358496869,1745213438842,-211.0,0.0005395,30]
[358496871,1745213438851,-157.267263,0.000542,2]
[358496873,1745213438860,-1000.0,0.000542,2]
[358496875,1745213438869,-1000.0,0.000542,2]
[358496877,1745213438878,-1000.0,0.000542,2]
[358496879,1745213438887,-1000.0,0.000542,2]
[358496881,1745213438895,-1000.0,0.000542,2]
[358496883,1745213438905,-1000.0,0.000542,2]
[358496885,1745213438914,-1000.0,0.000542,2]
[358496886,1745213438923,-1000.0,0.000542,2]
[358496888,1745213438932,-1000.0,0.000542,2]
[358496890,1745213438941,-1000.0,0.000542,2]
[358496892,1745213438950,-1000.0,0.000542,2]
[358496894,1745213438960,-1000.0,0.000542,2]
[358496896,1745213438969,-1000.0,0.000542,2]
[358496898,1745213438978,-1000.0,0.000542,2]
[358496900,1745213438987,-1000.0,0.000542,2]
[358496902,1745213438997,-1000.0,0.000542,2]
[358496904,1745213439006,-1000.0,0.000542,2]
[358496906,1745213439016,-1000.0,0.000542,2]
[358496908,1745213439025,-1000.0,0.000542,2]
[358496910,1745213439034,-1000.0,0.000542,2]
[358496912,1745213439043,-1000.0,0.000542,2]
[358496914,1745213439051,-1000.0,0.000542,2]
[358496916,1745213439060,-1000.0,0.000542,2]
[358496918,1745213439070,-1000.0,0.000542,2]
[358496919,1745213439078,-1000.0,0.000542,2]
[358496921,1745213439087,-1000.0,0.000542,2]
[358496923,1745213439095,-1000.0,0.000542,2]
[358496925,1745213439104,-1000.0,0.000542,2]
[358496927,1745213439113,-1000.0,0.000542,2]
[358496929,1745213439121,-1000.0,0.000542,2]
[358496931,1745213439130,-1000.0,0.000542,2]
[358496933,1745213439138,-1000.0,0.000542,2]
[358496935,1745213439147,-1000.0,0.000542,2]
[358496937,1745213439156,-1000.0,0.000542,2]
[358496939,1745213439165,-1000.0,0.000542,2]
[358496941,1745213439174,-1000.0,0.000542,2]
[358496943,1745213439183,-153.229548,0.000542,2]
[358496945,1745213439192,-1000.0,0.000542,2]
[358496947,1745213439201,-1000.0,0.000542,2]
[358496949,1745213439210,-1000.0,0.000542,2]
[358496951,1745213439220,-1000.0,0.000542,2]
[358496953,1745213439229,-1000.0,0.000542,2]
[358496955,1745213439238,-1000.0,0.000542,2]
[358496957,1745213439247,-1000.0,0.000542,2]
[358496959,1745213439256,-1000.0,0.000542,2]
[358496961,1745213439265,-1000.0,0.000542,2]
[358496963,1745213439274,-1000.0,0.000542,2]
[358496965,1745213439283,-1000.0,0.000542,2]
[358496967,1745213439292,-1000.0,0.000542,2]
[358496969,1745213439302,-1000.0,0.000542,2]
[358496970,1745213439312,-1000.0,0.000542,2]
[358496972,1745213439322,-1000.0,0.000542,2]
[358496975,1745213439332,-1000.0,0.000542,2]
[358496976,1745213439342,-1000.0,0.000542,2]
[358496978,1745213439354,-1000.0,0.000542,2]
[358496980,1745213439364,-1000.0,0.000542,2]
[358496982,1745213439374,-1000.0,0.000542,2]
[358496984,1745213439383,-917.0,0.000542,2]
[358496986,1745213439394,-439.65983743,0.00054247,120]
[358496988,1745213439403,-175.575359,0.00054501,60]
[358496990,1745213439414,-153.229548,0.00054501,60]
[358496992,1745213439423,-500.0,0.00054579,60]
[358496994,1745213439435,-154.87,0.000547,54]
[358496996,1745213439445,-154.87,0.000547,54]
[358496998,1745213439454,-154.87,0.000547,54]
[358497000,1745213439463,-154.87,0.000547,54]
[358497002,1745213439472,-154.87,0.000547,54]
[358497004,1745213439481,-154.87,0.000547,54]
[358497006,1745213439491,-529.98686773,0.00054795,120]
[358497008,1745213439501,-500.0,0.00054975,60]
[358497010,1745213439511,-151.0,0.00055,120]
[358497012,1745213439520,-500.0,0.00055175,120]